2CCN - Level 2 Cost Centre Name,,9CCN - Level 9 Cost Centre Name,9CCC - Level 9 Cost Centre Code,9AN - Level 9 Account Name,9AC - Level 9 Account Code,Date posted,Date of transaction,Merchant Name,Merchant City,Merchant State,Merchant Zip Code,Originating Account Name,Originating Account Number,MCC/SIC Code,MCC Description,Original Amount,Currency,Conversion Rate,Billed Amount,Debit Credit,Reference Number,Statement Cycle,Account Name
Gloucester City Council,23UE,Museum of Gloucester,MU002,General Supplies/Materials,3025,05/03/2019,04/03/2019,COTSWOLD INTERIORS,GLOUCESTER,GBR,GL1 1PN,REDACTED,556*********2362,1799,SPECIAL TRADE CONTRACTORS,5,Pound Sterling (826),1.000000000,5,Debit,55184229063930632946157,02/04/2019,GLOUCESTER CC
Gloucester City Council,23UE,Museum of Gloucester Catering,MU004,Hospitality & Refreshments,3104,13/03/2019,11/03/2019,W M MORRISON STORE,575 GLOUCESTE,,GL1 4BD,REDACTED,556*********2362,5411,"GROCERY STORES, SUPERMARKETS",2.18,Pound Sterling (826),1.000000000,2.18,Debit,85481479071122874079891,02/04/2019,GLOUCESTER CC
Gloucester City Council,23UE,Museum of Gloucester,MU002,General Supplies/Materials,3025,13/03/2019,12/03/2019,MILLINGTON & RAMSTEDT,GLOUCESTER,GBR,GL1 5TA,REDACTED,556*********2362,5231,"GLASS, PAINT, WALLPAPER STORES",37.8,Pound Sterling (826),1.000000000,37.8,Debit,05272479072910046117429,02/04/2019,GLOUCESTER CC
Gloucester City Council,23UE,Museum of Gloucester,MU002,General Supplies/Materials,3025,14/03/2019,13/03/2019,COTSWOLD INTERIORS,GLOUCESTER,GBR,GL1 1PN,REDACTED,556*********2362,1799,SPECIAL TRADE CONTRACTORS,15,Pound Sterling (826),1.000000000,15,Debit,55184229072940720705299,02/04/2019,GLOUCESTER CC
Gloucester City Council,23UE,Museum of Gloucester Catering,MU004,Hospitality & Refreshments,3104,15/03/2019,14/03/2019,ASDA SUPERSTORE,GLOUCESTER,GBR,GL1 1DS,REDACTED,556*********2362,5411,"GROCERY STORES, SUPERMARKETS",1.48,Pound Sterling (826),1.000000000,1.48,Debit,45377759074060310998246,02/04/2019,GLOUCESTER CC
Gloucester City Council,23UE,Museum of Gloucester,MU002,General Supplies/Materials,3025,18/03/2019,15/03/2019,B & Q 1179,GLOUCESTER,,GL12SG,REDACTED,556*********2362,5211,LUMBER AND BUILDING MATERIALS STORES,72,Pound Sterling (826),1.000000000,72,Debit,85481479075123767500700,02/04/2019,GLOUCESTER CC
Gloucester City Council,23UE,Museum of Gloucester Catering,MU004,Hospitality & Refreshments,3104,18/03/2019,16/03/2019,ASDA SUPERSTORE,GLOUCESTER,GBR,GL1 1DS,REDACTED,556*********2362,5411,"GROCERY STORES, SUPERMARKETS",16.85,Pound Sterling (826),1.000000000,16.85,Debit,15377759076070761687389,02/04/2019,GLOUCESTER CC
Gloucester City Council,23UE,Museum of Gloucester Catering,MU004,Hospitality & Refreshments,3104,27/03/2019,26/03/2019,SAINSBURYS 2221,GLOUCESTER,GBR,GL2 5SA,REDACTED,556*********2362,5411,"GROCERY STORES, SUPERMARKETS",4.45,Pound Sterling (826),1.000000000,4.45,Debit,35425159086040258468354,02/04/2019,GLOUCESTER CC
Gloucester City Council,23UE,Museum of Gloucester,MU002,General Supplies/Materials,3025,28/03/2019,27/03/2019,LYCO GROUP LTD,MILTON KEYNES,GBR,MK1 1ZR,REDACTED,556*********2362,5065,ELECTRICAL PARTS AND EQUIPMENT,26.36,Pound Sterling (826),1.000000000,26.36,Debit,15276329087000191120686,02/04/2019,GLOUCESTER CC
Gloucester City Council,23UE,Museum of Gloucester,MU002,Exhibition Costs,3021,01/04/2019,29/03/2019,AMZNMKTPLACE AMAZON.CO,AMAZON.CO.UK,GBR,,REDACTED,556*********2362,5999,MISCELLANEOUS AND RETAIL STORES,157.16,Pound Sterling (826),1.000000000,157.16,Debit,85389249088912352319046,02/04/2019,GLOUCESTER CC
Gloucester City Council,23UE,Museum of Gloucester,MU002,General Supplies/Materials,3025,01/04/2019,29/03/2019,TOOLSTATION LTD,GLOUCESTER,GBR,GL4 3HX,REDACTED,556*********2362,5251,HARDWARE STORES,13.68,Pound Sterling (826),1.000000000,13.68,Debit,25425159089070128050460,02/04/2019,GLOUCESTER CC
Gloucester City Council,23UE,Museum of Gloucester Catering,MU004,Hospitality & Refreshments,3104,01/04/2019,30/03/2019,ASDA SUPERSTORE,GLOUCESTER,GBR,GL1 1DS,REDACTED,556*********2362,5411,"GROCERY STORES, SUPERMARKETS",16.99,Pound Sterling (826),1.000000000,16.99,Debit,05377759090070702435057,02/04/2019,GLOUCESTER CC
Gloucester City Council,23UE,Museum of Gloucester,MU002,Exhibition Costs,3021,01/04/2019,01/04/2019,AMZNMktplace,amazon.co.uk,GBR,EC2A 2FA,REDACTED,556*********2362,5999,MISCELLANEOUS AND RETAIL STORES,169.9,Pound Sterling (826),1.000000000,169.9,Debit,55204729091200801325695,02/04/2019,GLOUCESTER CC
Gloucester City Council,23UE,Museum of Gloucester,MU002,Advertising & Publicity,3404,01/04/2019,31/03/2019,FACEBK *2XTFKKAKW2,fb.me/ads,IRL,UNKNOWN,REDACTED,556*********2362,7311,ADVERTISING SERVICES,40.55,Pound Sterling (826),1.000000000,40.55,Debit,55204729090200780045844,02/04/2019,GLOUCESTER CC
Gloucester City Council,23UE,Museum of Gloucester,MU002,Exhibition Costs,3021,01/04/2019,31/03/2019,ETSY.COM - MULTIPLE SH,ETSY.COM,IRL,,REDACTED,556*********2362,5699,MISCELLANEOUS APPAREL AND ACCESSORY STOR,36.52,Pound Sterling (826),1.000000000,36.52,Debit,85377779091071273734489,02/04/2019,GLOUCESTER CC
Gloucester City Council,23UE,Museum of Gloucester,MU002,Exhibition Costs,3021,01/04/2019,01/04/2019,Amazon.co.uk*MZ2UH63L4,AMAZON.CO.UK,LUX,L2338,REDACTED,556*********2362,5969,ALL OTHER DIRECT MARKETERS,27.22,Pound Sterling (826),1.000000000,27.22,Debit,55204729091200834117549,02/04/2019,GLOUCESTER CC
Gloucester City Council,23UE,Museum of Gloucester,MU002,Exhibition Costs,3021,01/04/2019,31/03/2019,HOMEBASE,03450778888,,SM6 0DX,REDACTED,556*********2362,5200,HOME SUPPLY WAREHOUSE STORES,47.95,Pound Sterling (826),1.000000000,47.95,Debit,85481479091128016448551,02/04/2019,GLOUCESTER CC
Gloucester City Council,23UE,Museum of Gloucester,MU002,Exhibition Costs,3021,02/04/2019,01/04/2019,Amazon.co.uk*MZ2BR83N4,AMAZON.CO.UK,LUX,L2338,REDACTED,556*********2362,5969,ALL OTHER DIRECT MARKETERS,12.92,Pound Sterling (826),1.000000000,12.92,Debit,55204729091200869544195,02/04/2019,GLOUCESTER CC
Gloucester City Council,23UE,Museum of Gloucester,MU002,Exhibition Costs,3021,02/04/2019,31/03/2019,AMZN MKTP UK*MZ2M013U4,AMAZON.CO.UK,LUX,,REDACTED,556*********2362,5942,BOOK STORES,9.68,Pound Sterling (826),1.000000000,9.68,Debit,85389249091912383082204,02/04/2019,GLOUCESTER CC
Gloucester City Council,23UE,Museum of Gloucester,MU002,Exhibition Costs,3021,02/04/2019,01/04/2019,AMZN MKTP UK*MZ6J653J4,AMAZON.CO.UK,LUX,,REDACTED,556*********2362,5942,BOOK STORES,15.99,Pound Sterling (826),1.000000000,15.99,Debit,85389249091912382661008,02/04/2019,GLOUCESTER CC
Gloucester City Council,23UE,Museum of Gloucester,MU002,Exhibition Costs,3021,02/04/2019,31/03/2019,AMZNMKTPLACE AMAZON.CO,AMAZON.CO.UK,GBR,,REDACTED,556*********2362,5999,MISCELLANEOUS AND RETAIL STORES,84.95,Pound Sterling (826),1.000000000,84.95,Debit,85389249091912375276590,02/04/2019,GLOUCESTER CC
Gloucester City Council,23UE,Museum of Gloucester,MU002,Exhibition Costs,3021,02/04/2019,31/03/2019,AMZNMKTPLACE AMAZON.CO,AMAZON.CO.UK,GBR,,REDACTED,556*********2362,5999,MISCELLANEOUS AND RETAIL STORES,53.42,Pound Sterling (826),1.000000000,53.42,Debit,85389249091912375040897,02/04/2019,GLOUCESTER CC
Gloucester City Council,23UE,Museum of Gloucester,MU002,Exhibition Costs,3021,02/04/2019,31/03/2019,AMZNMKTPLACE AMAZON.CO,AMAZON.CO.UK,GBR,,REDACTED,556*********2362,5999,MISCELLANEOUS AND RETAIL STORES,22.83,Pound Sterling (826),1.000000000,22.83,Debit,85389249091912375477867,02/04/2019,GLOUCESTER CC
Gloucester City Council,23UE,Museum of Gloucester,MU002,Advertising & Publicity,3404,02/04/2019,01/04/2019,WWW.INSTANTPRINT.C,01709 382202,,S63 5DR,REDACTED,556*********2362,7338,QUICK-COPY AND REPRODUCTION SERVICES,38.29,Pound Sterling (826),1.000000000,38.29,Debit,85481479092128271186770,02/04/2019,GLOUCESTER CC
Gloucester City Council,23UE,Managing Director & Directors,MT001,Hospitality & Refreshments,3104,26/03/2019,25/03/2019,LINDT & SPRUNGLI U,GLOUCESTER,,,REDACTED,471*********7903,5441,"CANDY, NUT CONFECTIONERY STORES",28,Pound Sterling (826),1.000000000,28,Debit,74163619085126301448482,02/04/2019,GLOUCESTER CC
Gloucester City Council,23UE,Managing Director & Directors,MT001,Public Transport - Staff,2402,12/03/2019,11/03/2019,Trainline,London,GBR,1445,REDACTED,556*********1418,4112,PASSENGER RAILWAYS,50.3,Pound Sterling (826),1.000000000,50.3,Debit,85130089070909249743547,02/04/2019,GLOUCESTER CC
Gloucester City Council,23UE,Managing Director & Directors,MT001,Equipment and Furniture,3001,18/03/2019,15/03/2019,ADEXA DIRECT,FARNHAM TONGH,LND,GU10 1BU,REDACTED,556*********1418,5812,"EATING PLACES, RESTAURANTS",502.8,Pound Sterling (826),1.000000000,502.8,Debit,85383909074000002086040,02/04/2019,GLOUCESTER CC
Gloucester City Council,23UE,Managing Director & Directors,MT001,Equipment and Furniture,3001,19/03/2019,18/03/2019,FARNELL,LEEDS,GBR,LS12 2QQ,REDACTED,556*********1418,5065,ELECTRICAL PARTS AND EQUIPMENT,124.68,Pound Sterling (826),1.000000000,124.68,Debit,25425159078080086773097,02/04/2019,GLOUCESTER CC
Gloucester City Council,23UE,Managing Director & Directors,MT001,Equipment and Furniture,3001,20/03/2019,19/03/2019,CARRIER BAG SHOP,02030029960,,N18 3HT,REDACTED,556*********1418,7399,BUSINESS SERVICES NOT ELSEWHERE CLASSIFIED,60.96,Pound Sterling (826),1.000000000,60.96,Debit,55504439078174162583079,02/04/2019,GLOUCESTER CC
Gloucester City Council,23UE,Managing Director & Directors,MT001,Equipment and Furniture,3001,22/03/2019,21/03/2019,AMZN Mktp UK*MW1N03UU4,800-279-6620,LUX,L2338,REDACTED,556*********1418,5942,BOOK STORES,57.44,Pound Sterling (826),1.000000000,57.44,Debit,55204729080200579194938,02/04/2019,GLOUCESTER CC
Gloucester City Council,23UE,Managing Director & Directors,MT001,Equipment and Furniture,3001,22/03/2019,21/03/2019,AMZN Mktp UK*MW21U7UY4,800-279-6620,LUX,L2338,REDACTED,556*********1418,5942,BOOK STORES,69.78,Pound Sterling (826),1.000000000,69.78,Debit,55204729080200546991788,02/04/2019,GLOUCESTER CC
Gloucester City Council,23UE,Managing Director & Directors,MT001,Equipment and Furniture,3001,22/03/2019,21/03/2019,AMZN Mktp UK*MW6E02U44,800-279-6620,LUX,L2338,REDACTED,556*********1418,5942,BOOK STORES,54.94,Pound Sterling (826),1.000000000,54.94,Debit,55204729080200579212755,02/04/2019,GLOUCESTER CC
Gloucester City Council,23UE,Managing Director & Directors,MT001,Equipment and Furniture,3001,25/03/2019,22/03/2019,AMZN Mktp UK*MW50Y4I74,800-279-6620,LUX,L2338,REDACTED,556*********1418,5942,BOOK STORES,175.92,Pound Sterling (826),1.000000000,175.92,Debit,55204729081200677898454,02/04/2019,GLOUCESTER CC
Gloucester City Council,23UE,Managing Director & Directors,MT001,Equipment and Furniture,3001,27/03/2019,25/03/2019,SCREWFIX DIRECT,YEOVIL,,BA228RT,REDACTED,556*********1418,5200,HOME SUPPLY WAREHOUSE STORES,89.99,Pound Sterling (826),1.000000000,89.99,Debit,85481479085126318740624,02/04/2019,GLOUCESTER CC
Gloucester City Council,23UE,Countryside Unit,EP003,Vehicle Repairs and Maintenance,2103,05/03/2019,04/03/2019,SQ *THE AUTOMOTIVE SPA,knaphill,GBR,GU212UW,REDACTED,556*********6734,5399,MISCELLANEOUS GENERAL MERCHANDISE STORES,42,Pound Sterling (826),1.000000000,42,Debit,85230749063908141506587,02/04/2019,GLOUCESTER CC
Gloucester City Council,23UE,Countryside Unit,EP003,Vehicle Repairs and Maintenance,2103,13/03/2019,12/03/2019,PAYPAL *AUTOPOWERUK,35314369001,GBR,TW91EH,REDACTED,556*********6734,5533,"AUTOMOTIVE PARTS, ACCESSORIES STORES",14.99,Pound Sterling (826),1.000000000,14.99,Debit,85130089071910275278514,02/04/2019,GLOUCESTER CC
Gloucester City Council,23UE,Countryside Unit,EP003,Vehicle Repairs and Maintenance,2103,01/04/2019,29/03/2019,PIRTEK GLOUCESTER,GLOUCESTER,GBR,GL2 2GA,REDACTED,556*********6734,8911,"ENGINEERING, ARCHITECTURAL AND SURVEYING SERVICES",22.27,Pound Sterling (826),1.000000000,22.27,Debit,05272469089910002026467,02/04/2019,GLOUCESTER CC
Gloucester City Council,23UE,Gloucester Guildhall,GH001,Mileage and Travel Allowances,2401,04/03/2019,28/02/2019,WHAT THE PITTA!,LONDON NW1,,NW1 0AG,REDACTED,556*********1155,5812,"EATING PLACES, RESTAURANTS",9.95,Pound Sterling (826),1.000000000,9.95,Debit,55203349060530006184967,02/04/2019,GLOUCESTER CC
Gloucester City Council,23UE,Gloucester Guildhall,GH001,Mileage and Travel Allowances,2401,04/03/2019,01/03/2019,LUL TICKET MACHINE,CAMDEN TOWN,,NW18NH,REDACTED,556*********1155,4112,PASSENGER RAILWAYS,4.9,Pound Sterling (826),1.000000000,4.9,Debit,85481479061120211376675,02/04/2019,GLOUCESTER CC
Gloucester City Council,23UE,Gloucester Guildhall,GH001,Mileage and Travel Allowances,2401,04/03/2019,01/03/2019,THE DINER,LONDON,GBR,NW1 7BY,REDACTED,556*********1155,5812,"EATING PLACES, RESTAURANTS",13.44,Pound Sterling (826),1.000000000,13.44,Debit,95425159062070527562515,02/04/2019,GLOUCESTER CC
Gloucester City Council,23UE,Guildhall Bar and Caf�,GH005,Catering Provisions,3103,05/03/2019,04/03/2019,SAINSBURYS 2221,GLOUCESTER,GBR,GL2 5SA,REDACTED,556*********1155,5411,"GROCERY STORES, SUPERMARKETS",83.76,Pound Sterling (826),1.000000000,83.76,Debit,35425159064080209497090,02/04/2019,GLOUCESTER CC
Gloucester City Council,23UE,Blackfriars ,GH010,Building Repairs and Maintenance,1001,05/03/2019,04/03/2019,B & Q 1179,GLOUCESTER,,GL12SG,REDACTED,556*********1155,5211,LUMBER AND BUILDING MATERIALS STORES,182.02,Pound Sterling (826),1.000000000,182.02,Debit,85481479064120993286826,02/04/2019,GLOUCESTER CC
Gloucester City Council,23UE,Guildhall Bar and Caf�,GH005,Catering Provisions,3103,06/03/2019,05/03/2019,SAINSBURYS 0771,GLOUCESTER,GBR,GL1 2AG,REDACTED,556*********1155,5411,"GROCERY STORES, SUPERMARKETS",10.35,Pound Sterling (826),1.000000000,10.35,Debit,35425159065090199144718,02/04/2019,GLOUCESTER CC
Gloucester City Council,23UE,Guildhall Bar and Caf�,GH005,Catering Provisions,3103,06/03/2019,05/03/2019,ICELAND,GLOUCESTER,GBR,GL1 1SA,REDACTED,556*********1155,5411,"GROCERY STORES, SUPERMARKETS",4,Pound Sterling (826),1.000000000,4,Debit,25377759065090098918176,02/04/2019,GLOUCESTER CC
Gloucester City Council,23UE,Guildhall Bar and Caf�,GH005,Catering Provisions,3103,06/03/2019,05/03/2019,MARKS&SPENCER PLC,GLOUCESTER,GBR,GL1 1PH,REDACTED,556*********1155,5411,"GROCERY STORES, SUPERMARKETS",3.4,Pound Sterling (826),1.000000000,3.4,Debit,45377759065090285017673,02/04/2019,GLOUCESTER CC
Gloucester City Council,23UE,Guildhall Events,GH002,Catering Provisions,3103,08/03/2019,07/03/2019,ASDA SUPERSTORE,GLOUCESTER,GBR,GL1 1DS,REDACTED,556*********1155,5411,"GROCERY STORES, SUPERMARKETS",90.19,Pound Sterling (826),1.000000000,90.19,Debit,45377759067010305339624,02/04/2019,GLOUCESTER CC
Gloucester City Council,23UE,Blackfriars ,GH010,Building Repairs and Maintenance,1001,13/03/2019,11/03/2019,HOMEBASE LTD 135,GLOUCESTER,,GL43BD,REDACTED,556*********1155,5211,LUMBER AND BUILDING MATERIALS STORES,42,Pound Sterling (826),1.000000000,42,Debit,85481479071122841679112,02/04/2019,GLOUCESTER CC
Gloucester City Council,23UE,Guildhall Bar and Caf�,GH005,Catering Provisions,3103,13/03/2019,12/03/2019,ICELAND,GLOUCESTER,GBR,GL1 1SA,REDACTED,556*********1155,5411,"GROCERY STORES, SUPERMARKETS",6,Pound Sterling (826),1.000000000,6,Debit,25377759072040098558655,02/04/2019,GLOUCESTER CC
Gloucester City Council,23UE,Guildhall Events,GH002,Catering Provisions,3103,14/03/2019,13/03/2019,ASDA GROCERIES ONLINE,INTERNET,GBR,LS11 5AD,REDACTED,556*********1155,5411,"GROCERY STORES, SUPERMARKETS",82.76,Pound Sterling (826),1.000000000,82.76,Debit,25377759073050143501419,02/04/2019,GLOUCESTER CC
Gloucester City Council,23UE,Blackfriars Weddings,GH011,Advertising & Publicity,3404,18/03/2019,15/03/2019,TESCO STORES 6819,GLOUCESTER,GBR,GL1 1TP,REDACTED,556*********1155,5411,"GROCERY STORES, SUPERMARKETS",24.3,Pound Sterling (826),1.000000000,24.3,Debit,15377759075070069359617,02/04/2019,GLOUCESTER CC
Gloucester City Council,23UE,Blackfriars Weddings,GH011,Advertising & Publicity,3404,18/03/2019,15/03/2019,WILKO RETAIL LIMIT,GLOUCESTER 14,,GL11SL,REDACTED,556*********1155,5722,HOUSEHOLD APPLIANCE STORES,39.12,Pound Sterling (826),1.000000000,39.12,Debit,85481479075123818086618,02/04/2019,GLOUCESTER CC
Gloucester City Council,23UE,Blackfriars Weddings,GH011,Advertising & Publicity,3404,18/03/2019,17/03/2019,TESCO STORES 6819,GLOUCESTER,GBR,GL1 1TP,REDACTED,556*********1155,5411,"GROCERY STORES, SUPERMARKETS",6.1,Pound Sterling (826),1.000000000,6.1,Debit,55377759077070885216615,02/04/2019,GLOUCESTER CC
Gloucester City Council,23UE,Blackfriars Weddings,GH011,Advertising & Publicity,3404,18/03/2019,17/03/2019,TESCO STORES 6819,GLOUCESTER,GBR,GL1 1TP,REDACTED,556*********1155,5411,"GROCERY STORES, SUPERMARKETS",4.5,Pound Sterling (826),1.000000000,4.5,Debit,55377759077070885216755,02/04/2019,GLOUCESTER CC
Gloucester City Council,23UE,Blackfriars Weddings,GH011,Advertising & Publicity,3404,26/03/2019,24/03/2019,CO-OPERATIVE FOOD,GLOUCESTER,,GL33TL,REDACTED,556*********1155,5411,"GROCERY STORES, SUPERMARKETS",2.7,Pound Sterling (826),1.000000000,2.7,Debit,85481479084126181023000,02/04/2019,GLOUCESTER CC
Gloucester City Council,23UE,Blackfriars Weddings,GH011,Advertising & Publicity,3404,27/03/2019,26/03/2019,SQUARESPACE INC.,6465803456,NY,10014,REDACTED,556*********1155,7372,COMPUTER AND DATA PROCESSING SERVICES,180,Pound Sterling (826),1.000000000,180,Debit,85121529085912636632280,02/04/2019,GLOUCESTER CC
Gloucester City Council,23UE,Guildhall Bar and Caf�,GH005,Catering Provisions,3103,27/03/2019,26/03/2019,ICELAND,GLOUCESTER,GBR,GL1 1SA,REDACTED,556*********1155,5411,"GROCERY STORES, SUPERMARKETS",5,Pound Sterling (826),1.000000000,5,Debit,25377759086040109979217,02/04/2019,GLOUCESTER CC
Gloucester City Council,23UE,Gloucester Guildhall,GH001,Equipment and Furniture,3001,29/03/2019,28/03/2019,AMZN MKTP UK*MZ1K47L04,AMAZON.CO.UK,LUX,,REDACTED,556*********1155,5942,BOOK STORES,20.97,Pound Sterling (826),1.000000000,20.97,Debit,85389249087912343158173,02/04/2019,GLOUCESTER CC
Gloucester City Council,23UE,Guildhall Bar and Caf�,GH005,Catering Provisions,3103,01/04/2019,29/03/2019,SAINSBURYS SACAT 0608,GLOUCESTER,GBR,GL4 3RT,REDACTED,556*********1155,5411,"GROCERY STORES, SUPERMARKETS",14.2,Pound Sterling (826),1.000000000,14.2,Debit,25425159089070179179903,02/04/2019,GLOUCESTER CC
Gloucester City Council,23UE,Guildhall Bar and Caf�,GH005,Catering Provisions,3103,01/04/2019,29/03/2019,ASDA SUPERSTORE,GLOUCESTER,GBR,GL1 1DS,REDACTED,556*********1155,5411,"GROCERY STORES, SUPERMARKETS",9.4,Pound Sterling (826),1.000000000,9.4,Debit,45377759089070366215505,02/04/2019,GLOUCESTER CC
Gloucester City Council,23UE,Guildhall Bar and Caf�,GH005,Catering Provisions,3103,01/04/2019,29/03/2019,BOOKER LIMITED GLOUCES,GLOUCESTER,GBR,GL4 3RT,REDACTED,556*********1155,5811,CATERERS,55.85,Pound Sterling (826),1.000000000,55.85,Debit,55184229088890893037883,02/04/2019,GLOUCESTER CC
Gloucester City Council,23UE,Guildhall Bar and Caf�,GH005,Catering Provisions,3103,01/04/2019,30/03/2019,SAINSBURYS SACAT 0771,GLOUCESTER,GBR,GL1 2AG,REDACTED,556*********1155,5411,"GROCERY STORES, SUPERMARKETS",3.2,Pound Sterling (826),1.000000000,3.2,Debit,05425159090070832538627,02/04/2019,GLOUCESTER CC
Gloucester City Council,23UE,Guildhall Bar and Caf�,GH005,Catering Provisions,3103,01/04/2019,30/03/2019,ICELAND,GLOUCESTER,GBR,GL1 1SA,REDACTED,556*********1155,5411,"GROCERY STORES, SUPERMARKETS",9.52,Pound Sterling (826),1.000000000,9.52,Debit,95377759090070599908241,02/04/2019,GLOUCESTER CC
Gloucester City Council,23UE,Guildhall Bar and Caf�,GH005,Catering Provisions,3103,01/04/2019,30/03/2019,TESCO STORES 6819,GLOUCESTER,GBR,GL1 1TP,REDACTED,556*********1155,5411,"GROCERY STORES, SUPERMARKETS",8.4,Pound Sterling (826),1.000000000,8.4,Debit,85377759090070539966334,02/04/2019,GLOUCESTER CC
Gloucester City Council,23UE,Blackfriars Weddings,GH011,Advertising & Publicity,3404,04/03/2019,01/03/2019,Helloprint,Rotterdam,NLD,3012 BG,REDACTED,556*********8997,7338,QUICK-COPY AND REPRODUCTION SERVICES,81.78,Pound Sterling (826),1.000000000,81.78,Debit,15265679060000154363820,02/04/2019,GLOUCESTER CC
Gloucester City Council,23UE,Blackfriars Weddings,GH011,Equipment and Furniture,3001,04/03/2019,01/03/2019,PAYPAL *ANDYANDSUEB,35314369001,GBR,TW91EH,REDACTED,556*********8997,5942,BOOK STORES,186.95,Pound Sterling (826),1.000000000,186.95,Debit,85130089060908784965129,02/04/2019,GLOUCESTER CC
Gloucester City Council,23UE,Museum of Gloucester,MU002,Exhibition Costs,3021,05/03/2019,05/03/2019,AMZN Mktp UK*MW2169AS4,800-279-6620,LUX,L2338,REDACTED,556*********8997,5942,BOOK STORES,24.17,Pound Sterling (826),1.000000000,24.17,Debit,55204729064200830365285,02/04/2019,GLOUCESTER CC
Gloucester City Council,23UE,Blackfriars Weddings,GH011,Equipment and Furniture,3001,05/03/2019,04/03/2019,TESCO STORES 5363,GLOUCESTER,GBR,GL3 4AA,REDACTED,556*********8997,5411,"GROCERY STORES, SUPERMARKETS",60,Pound Sterling (826),1.000000000,60,Debit,65377759064080373033715,02/04/2019,GLOUCESTER CC
Gloucester City Council,23UE,Museum of Gloucester,MU002,Exhibition Costs,3021,06/03/2019,05/03/2019,AMZN Mktp UK*MW5IM9T14,800-279-6620,LUX,L2338,REDACTED,556*********8997,5942,BOOK STORES,19.7,Pound Sterling (826),1.000000000,19.7,Debit,55204729064200882820575,02/04/2019,GLOUCESTER CC
Gloucester City Council,23UE,Blackfriars ,GH010,General Supplies/Materials,3025,06/03/2019,05/03/2019,AMZN Mktp UK*MW7GN0TF4,800-279-6620,LUX,L2338,REDACTED,556*********8997,5942,BOOK STORES,19.98,Pound Sterling (826),1.000000000,19.98,Debit,55204729064200899799432,02/04/2019,GLOUCESTER CC
Gloucester City Council,23UE,Museum of Gloucester,MU002,Exhibition Costs,3021,06/03/2019,05/03/2019,AMZN Mktp UK*MW6T22AG4,800-279-6620,LUX,L2338,REDACTED,556*********8997,5942,BOOK STORES,9.5,Pound Sterling (826),1.000000000,9.5,Debit,55204729064200931819354,02/04/2019,GLOUCESTER CC
Gloucester City Council,23UE,Museum of Gloucester,MU002,Exhibition Costs,3021,06/03/2019,05/03/2019,AMZN Mktp UK*MW8975EE4,800-279-6620,LUX,L2338,REDACTED,556*********8997,5942,BOOK STORES,18.38,Pound Sterling (826),1.000000000,18.38,Debit,55204729064200936291732,02/04/2019,GLOUCESTER CC
Gloucester City Council,23UE,Museum of Gloucester,MU002,Exhibition Costs,3021,06/03/2019,05/03/2019,AMZN Mktp UK*MW9ZZ0EQ4,800-279-6620,LUX,L2338,REDACTED,556*********8997,5942,BOOK STORES,4.72,Pound Sterling (826),1.000000000,4.72,Debit,55204729064200967401119,02/04/2019,GLOUCESTER CC
Gloucester City Council,23UE,Museum of Gloucester,MU002,Exhibition Costs,3021,06/03/2019,05/03/2019,WWW.CLOTHES2ORDER.COM,MANCHESTER M1,GBR,M17 1EH,REDACTED,556*********8997,5137,"MEN'S,WOMEN'S AND CHILDREN'S UNIFORMS AN",553.44,Pound Sterling (826),1.000000000,553.44,Debit,15276329065000395481617,02/04/2019,GLOUCESTER CC
Gloucester City Council,23UE,Blackfriars Weddings,GH011,Advertising & Publicity,3404,06/03/2019,05/03/2019,WWW.INSTANTPRINT.C,01709 382202,,S63 5DR,REDACTED,556*********8997,7338,QUICK-COPY AND REPRODUCTION SERVICES,24.99,Pound Sterling (826),1.000000000,24.99,Debit,85481479065121275258250,02/04/2019,GLOUCESTER CC
Gloucester City Council,23UE,Tourist Information Centre,TI002,Equipment and Furniture,3001,07/03/2019,06/03/2019,NICKS & COMPANY,GLOUCESTER,,G11 5TE,REDACTED,556*********8997,5211,LUMBER AND BUILDING MATERIALS STORES,67.86,Pound Sterling (826),1.000000000,67.86,Debit,55541969065938001149136,02/04/2019,GLOUCESTER CC
Gloucester City Council,23UE,Blackfriars ,GH010,General Supplies/Materials,3025,08/03/2019,07/03/2019,WWW.LIGHTS4FUN.CO.,01423 816040,,HG2 8RE,REDACTED,556*********8997,5999,MISCELLANEOUS AND RETAIL STORES,12.99,Pound Sterling (826),1.000000000,12.99,Debit,85481479067121734102808,02/04/2019,GLOUCESTER CC
Gloucester City Council,23UE,Museum of Gloucester,MU002,Events,3070,11/03/2019,08/03/2019,FACEBK *RRNMBL2KW2,fb.me/ads,IRL,UNKNOWN,REDACTED,556*********8997,7311,ADVERTISING SERVICES,20.75,Pound Sterling (826),1.000000000,20.75,Debit,55204729067200653642684,02/04/2019,GLOUCESTER CC
Gloucester City Council,23UE,Museum of Gloucester,MU002,Printing External,3203,11/03/2019,08/03/2019,THESTENCILSTUDIO.COM,HOPE MILL LAN,LND,GL5 2SH,REDACTED,556*********8997,5712,"FURNITURE, HOME FURNISHINGS AND EQUIPMENT STORES",250,Pound Sterling (826),1.000000000,250,Debit,85383909067000002346443,02/04/2019,GLOUCESTER CC
Gloucester City Council,23UE,Blackfriars ,GH010,Equipment and Furniture,3001,11/03/2019,08/03/2019,BLOOMING ARTIFICIAL,GREAT YARMOUT,LND,NR31 0NW,REDACTED,556*********8997,5992,FLORISTS,55.99,Pound Sterling (826),1.000000000,55.99,Debit,85383909067000002520278,02/04/2019,GLOUCESTER CC
Gloucester City Council,23UE,Museum of Gloucester,MU002,Printing External,3203,11/03/2019,08/03/2019,VISTAPRINT,800-721-6214,GBR,N1C 4AG,REDACTED,556*********8997,2741,MISCELLANEOUS PUBLISHING & PRINTING,3.59,Pound Sterling (826),1.000000000,3.59,Debit,45424519068020291012275,02/04/2019,GLOUCESTER CC
Gloucester City Council,23UE,Blackfriars Weddings,GH011,Equipment and Furniture,3001,11/03/2019,08/03/2019,ASDA GEORGE COM LEEDS,LEEDS,GBR,LS11 5AD,REDACTED,556*********8997,5411,"GROCERY STORES, SUPERMARKETS",20.95,Pound Sterling (826),1.000000000,20.95,Debit,55377759068020410518622,02/04/2019,GLOUCESTER CC
Gloucester City Council,23UE,Blackfriars Weddings,GH011,Advertising & Publicity,3404,11/03/2019,08/03/2019,WWW.INSTANTPRINT.C,01709 382202,,S63 5DR,REDACTED,556*********8997,7338,QUICK-COPY AND REPRODUCTION SERVICES,146,Pound Sterling (826),1.000000000,146,Debit,85481479068122048742155,02/04/2019,GLOUCESTER CC
Gloucester City Council,23UE,Blackfriars ,GH010,General Supplies/Materials,3025,11/03/2019,10/03/2019,AMZN Mktp UK*MW9P42XV4,800-279-6620,LUX,L2338,REDACTED,556*********8997,5942,BOOK STORES,20,Pound Sterling (826),1.000000000,20,Debit,55204729069200062325770,02/04/2019,GLOUCESTER CC
Gloucester City Council,23UE,Blackfriars Weddings,GH011,Advertising & Publicity,3404,12/03/2019,11/03/2019,VISTAPR*VistaPrint.com,866-8936743,NLD,LW 5928,REDACTED,556*********8997,2741,MISCELLANEOUS PUBLISHING & PRINTING,29.96,Pound Sterling (826),1.000000000,29.96,Debit,55204729070200300404475,02/04/2019,GLOUCESTER CC
Gloucester City Council,23UE,Museum of Gloucester,MU002,General Supplies/Materials,3025,12/03/2019,11/03/2019,WWW.UKPOS.COM,INTERNET,GBR,SK6 2TD,REDACTED,556*********8997,5943,"STATIONERY, OFFICE AND SCHOOL SUPPLY STO",481.01,Pound Sterling (826),1.000000000,481.01,Debit,05272479071910038021994,02/04/2019,GLOUCESTER CC
Gloucester City Council,23UE,Museum of Gloucester,MU002,Exhibition Costs,3021,13/03/2019,12/03/2019,AMZN Mktp UK*MW3HQ15S4,800-279-6620,LUX,L2338,REDACTED,556*********8997,5942,BOOK STORES,19.99,Pound Sterling (826),1.000000000,19.99,Debit,55204729071200499796342,02/04/2019,GLOUCESTER CC
Gloucester City Council,23UE,Guildhall Events,GH002,Professional Advice/Consultants Fees,3952,13/03/2019,07/03/2019,MIPERMIT LTD,INTERNET,GBR,SN15 5FD,REDACTED,556*********8997,7523,AUTOMOBILE PARKING LOTS AND GARAGES,10,Pound Sterling (826),1.000000000,10,Debit,25425159072040130642348,02/04/2019,GLOUCESTER CC
Gloucester City Council,23UE,Gloucester Guildhall,GH001,Equipment and Furniture,3001,15/03/2019,14/03/2019,WILKO.COM,INTERNET,GBR,S80 3EG,REDACTED,556*********8997,5399,MISCELLANEOUS GENERAL MERCHANDISE STORES,45,Pound Sterling (826),1.000000000,45,Debit,45425159074060360270897,02/04/2019,GLOUCESTER CC
Gloucester City Council,23UE,Blackfriars ,GH010,General Supplies/Materials,3025,18/03/2019,15/03/2019,AMZN Mktp UK*MW26H76O4,800-279-6620,LUX,L2338,REDACTED,556*********8997,5942,BOOK STORES,19.98,Pound Sterling (826),1.000000000,19.98,Debit,55204729074200174520980,02/04/2019,GLOUCESTER CC
Gloucester City Council,23UE,Guildhall Events,GH002,Events,3070,18/03/2019,15/03/2019,Village Hotel Bristol,Warrington,GBR,WA1 1RW,REDACTED,556*********8997,7011,"LODGING, HOTELS, MOTELS, RESORTS",5,Pound Sterling (826),1.000000000,5,Debit,05402849074031500759179,02/04/2019,GLOUCESTER CC
Gloucester City Council,23UE,Guildhall Events,GH002,Events,3070,18/03/2019,15/03/2019,Village Hotel Bristol,Warrington,GBR,WA1 1RW,REDACTED,556*********8997,7011,"LODGING, HOTELS, MOTELS, RESORTS",5,Pound Sterling (826),1.000000000,5,Debit,05402849074031500759187,02/04/2019,GLOUCESTER CC
Gloucester City Council,23UE,Tourist Information Centre,TI002,Equipment and Furniture,3001,18/03/2019,15/03/2019,WWW.UKPOS.COM,INTERNET,GBR,SK6 2TD,REDACTED,556*********8997,5943,"STATIONERY, OFFICE AND SCHOOL SUPPLY STO",160.85,Pound Sterling (826),1.000000000,160.85,Debit,05272479075910098025600,02/04/2019,GLOUCESTER CC
Gloucester City Council,23UE,Gloucester Guildhall,GH001,Advertising & Publicity,3404,19/03/2019,18/03/2019,MAILCHIMP *MONTHLY,MAILCHIMP.COM,GA,30308,REDACTED,556*********8997,5968,CONTINUITY/SUBSCRIPTION MERCHANTS,22.9,Pound Sterling (826),1.000000000,22.9,Debit,55425449077200928929482,02/04/2019,GLOUCESTER CC
Gloucester City Council,23UE,Gloucester Guildhall,GH001,General Supplies/Materials,3025,20/03/2019,18/03/2019,STAGEDEPOT.CO.UK,0117 3250336,,BS4 5QR,REDACTED,556*********8997,5251,HARDWARE STORES,42.18,Pound Sterling (826),1.000000000,42.18,Debit,85481479078124531570281,02/04/2019,GLOUCESTER CC
Gloucester City Council,23UE,Guildhall Events,GH002,Professional Advice/Consultants Fees,3952,20/03/2019,15/03/2019,MIPERMIT LTD,INTERNET,GBR,SN15 5FD,REDACTED,556*********8997,7523,AUTOMOBILE PARKING LOTS AND GARAGES,10,Pound Sterling (826),1.000000000,10,Debit,25425159079090141549258,02/04/2019,GLOUCESTER CC
Gloucester City Council,23UE,Blackfriars Weddings,GH011,Advertising & Publicity,3404,20/03/2019,19/03/2019,WWW.INSTANTPRINT.C,01709 382202,,S63 5DR,REDACTED,556*********8997,7338,QUICK-COPY AND REPRODUCTION SERVICES,19.99,Pound Sterling (826),1.000000000,19.99,Debit,85481479079124826141425,02/04/2019,GLOUCESTER CC
Gloucester City Council,23UE,Guildhall Events,GH002,Advertising & Publicity,3404,01/04/2019,31/03/2019,FACEBK *NUUDNKSEX2,fb.me/ads,IRL,UNKNOWN,REDACTED,556*********8997,7311,ADVERTISING SERVICES,26.09,Pound Sterling (826),1.000000000,26.09,Debit,55204729090200758840705,02/04/2019,GLOUCESTER CC
Gloucester City Council,23UE,Docks Complex - Services,AM006,Hospitality & Refreshments,3104,13/03/2019,12/03/2019,TESCO STORES 6819,GLOUCESTER,GBR,GL1 1TP,REDACTED,556*********4301,5411,"GROCERY STORES, SUPERMARKETS",9.32,Pound Sterling (826),1.000000000,9.32,Debit,15377759072040030696556,02/04/2019,GLOUCESTER CC
Gloucester City Council,23UE,Docks Complex - Services,AM006,Hospitality & Refreshments,3104,26/03/2019,24/03/2019,WM MORRISONS STORE,ABBEYDALE,,GL44FF,REDACTED,556*********4301,5411,"GROCERY STORES, SUPERMARKETS",5.45,Pound Sterling (826),1.000000000,5.45,Debit,85481479084126176258280,02/04/2019,GLOUCESTER CC
Gloucester City Council,23UE,Docks Complex - Services,AM006,Hospitality & Refreshments,3104,29/03/2019,28/03/2019,SAINSBURYS 2221,GLOUCESTER,GBR,GL2 5SA,REDACTED,556*********4301,5411,"GROCERY STORES, SUPERMARKETS",42.6,Pound Sterling (826),1.000000000,42.6,Debit,25425159088060172816644,02/04/2019,GLOUCESTER CC
Gloucester City Council,23UE,Docks Complex - Services,AM006,Building Repairs and Maintenance,1001,06/03/2019,05/03/2019,CP-LIGHTING.CO.UK,LONDON,,KT6 7QD,REDACTED,556*********6128,5999,MISCELLANEOUS AND RETAIL STORES,36.62,Pound Sterling (826),1.000000000,36.62,Debit,85481479065121234029602,02/04/2019,GLOUCESTER CC
Gloucester City Council,23UE,Docks Complex - Services,AM006,Building Repairs and Maintenance,1001,07/03/2019,05/03/2019,DENMANS ELECTRICAL,GLOUCESTER,,GL1 3QA,REDACTED,556*********6128,5065,ELECTRICAL PARTS AND EQUIPMENT,191.05,Pound Sterling (826),1.000000000,191.05,Debit,85481479066121488454422,02/04/2019,GLOUCESTER CC
Gloucester City Council,23UE,Docks Complex - Services,AM006,Hospitality & Refreshments,3104,08/03/2019,07/03/2019,SAINSBURYS SACAT 2221,GLOUCESTER,GBR,GL2 5SA,REDACTED,556*********6128,5411,"GROCERY STORES, SUPERMARKETS",3.5,Pound Sterling (826),1.000000000,3.5,Debit,35425159067010232452488,02/04/2019,GLOUCESTER CC
Gloucester City Council,23UE,Docks Complex - Services,AM006,Hospitality & Refreshments,3104,21/03/2019,20/03/2019,SAINSBURYS SACAT 2221,GLOUCESTER,GBR,GL2 5SA,REDACTED,556*********6128,5411,"GROCERY STORES, SUPERMARKETS",3.45,Pound Sterling (826),1.000000000,3.45,Debit,35425159080000241349034,02/04/2019,GLOUCESTER CC
Gloucester City Council,23UE,Development Management,PL003,Public Transport - Staff,2402,08/03/2019,07/03/2019,Trainline,London,GBR,1445,REDACTED,556*********4234,4112,PASSENGER RAILWAYS,96,Pound Sterling (826),1.000000000,96,Debit,85130089066909073152472,02/04/2019,GLOUCESTER CC
Gloucester City Council,23UE,Council Streetcare Team,NE002,General Supplies/Materials,3025,11/03/2019,07/03/2019,AMZN MKTP UK*MW5J87PS4,AMAZON.CO.UK,LUX,,REDACTED,556*********4234,5942,BOOK STORES,57,Pound Sterling (826),1.000000000,57,Debit,85389249067909109565876,02/04/2019,GLOUCESTER CC
Gloucester City Council,23UE,Housing Services,HS001,Public Transport - Staff,2402,15/03/2019,14/03/2019,Trainline,London,GBR,1445,REDACTED,556*********4234,4112,PASSENGER RAILWAYS,186.2,Pound Sterling (826),1.000000000,186.2,Debit,85130089073910390466851,02/04/2019,GLOUCESTER CC
Gloucester City Council,23UE,Council Streetcare Team,NE002,Public Transport - Staff,2402,19/03/2019,18/03/2019,Trainline,London,GBR,1445,REDACTED,556*********4234,4112,PASSENGER RAILWAYS,18.75,Pound Sterling (826),1.000000000,18.75,Debit,85130089077910570714217,02/04/2019,GLOUCESTER CC
Gloucester City Council,23UE,Council Streetcare Team,NE002,Public Transport - Staff,2402,20/03/2019,19/03/2019,Trainline,London,GBR,1445,REDACTED,556*********4234,4112,PASSENGER RAILWAYS,3.75,Pound Sterling (826),1.000000000,3.75,Debit,85130089078911618427456,02/04/2019,GLOUCESTER CC
Gloucester City Council,23UE,Development Management,PL003,Public Transport - Staff,2402,21/03/2019,20/03/2019,Trainline,London,GBR,1445,REDACTED,556*********4234,4112,PASSENGER RAILWAYS,96,Pound Sterling (826),1.000000000,96,Debit,85130089079911665658465,02/04/2019,GLOUCESTER CC
Gloucester City Council,23UE,Contact Centre,CT001,Mileage and Travel Allowances,2401,26/03/2019,25/03/2019,TRAVELODGE GB0000,THAME,,OX9 3AT,REDACTED,556*********4234,3615,TRAVELODGE,133.89,Pound Sterling (826),1.000000000,133.89,Debit,55504439084298100808181,02/04/2019,GLOUCESTER CC
Gloucester City Council,23UE,Contact Centre,CT001,Public Transport - Staff,2402,27/03/2019,26/03/2019,Trainline,London,GBR,1445,REDACTED,556*********4234,4112,PASSENGER RAILWAYS,186.8,Pound Sterling (826),1.000000000,186.8,Debit,85130089085912935569682,02/04/2019,GLOUCESTER CC
Gloucester City Council,23UE,Asset Management,AM035,Hospitality & Refreshments,3104,28/03/2019,27/03/2019,MARKS&SPENCER PLC,GLOUCESTER,GBR,GL1 1PH,REDACTED,556*********4234,5411,"GROCERY STORES, SUPERMARKETS",21.5,Pound Sterling (826),1.000000000,21.5,Debit,35377759087050218058959,02/04/2019,GLOUCESTER CC
Gloucester City Council,23UE,Members Support,DS002,Mileage and Travel Allowances,2401,08/03/2019,07/03/2019,Trainline,London,GBR,1445,REDACTED,556*********3029,4112,PASSENGER RAILWAYS,10.75,Pound Sterling (826),1.000000000,10.75,Debit,85130089066909073154601,02/04/2019,GLOUCESTER CC
Gloucester City Council,23UE,Democratic Services,DS003,Public Transport - Staff,2402,12/03/2019,11/03/2019,Trainline,London,GBR,1445,REDACTED,556*********3029,4112,PASSENGER RAILWAYS,18.75,Pound Sterling (826),1.000000000,18.75,Debit,85130089070909249718713,02/04/2019,GLOUCESTER CC
Gloucester City Council,23UE,Housing Services,HS001,B&B Payments,1303,04/03/2019,01/03/2019,TRAVELODGE GB0000,THAME,,OX9 3AT,REDACTED,556*********6959,3615,TRAVELODGE,160,Pound Sterling (826),1.000000000,160,Debit,55504439060298153008612,02/04/2019,GLOUCESTER CC
Gloucester City Council,23UE,Housing Services,HS001,Public Transport - Staff,2402,05/03/2019,04/03/2019,Trainline,London,GBR,1445,REDACTED,556*********6959,4112,PASSENGER RAILWAYS,23.35,Pound Sterling (826),1.000000000,23.35,Debit,85130089063908923927003,02/04/2019,GLOUCESTER CC
Gloucester City Council,23UE,Housing Services,HS001,Public Transport - Staff,2402,05/03/2019,04/03/2019,Trainline,London,GBR,1445,REDACTED,556*********6959,4112,PASSENGER RAILWAYS,23.35,Pound Sterling (826),1.000000000,23.35,Debit,85130089063908923929132,02/04/2019,GLOUCESTER CC
Gloucester City Council,23UE,Housing Services,HS001,B&B Payments,1303,05/03/2019,04/03/2019,TRAVELODGE GB0000,THAME,,OX9 3AT,REDACTED,556*********6959,3615,TRAVELODGE,195,Pound Sterling (826),1.000000000,195,Debit,55504439063298169748737,02/04/2019,GLOUCESTER CC
Gloucester City Council,23UE,Housing Services,HS001,B&B Payments,1303,05/03/2019,04/03/2019,TRAVELODGE GB0000,THAME,,OX9 3AT,REDACTED,556*********6959,3615,TRAVELODGE,54,Pound Sterling (826),1.000000000,54,Debit,55504439063298169794152,02/04/2019,GLOUCESTER CC
Gloucester City Council,23UE,Housing Services,HS001,Mileage and Travel Allowances,2401,05/03/2019,04/03/2019,VERIFONE TAXI/PRIVATE,03336661000,GBR,UB8 2AD,REDACTED,556*********6959,4121,TAXICABS/LIMOUSINES,6,Pound Sterling (826),1.000000000,6,Debit,05272469064910069071124,02/04/2019,GLOUCESTER CC
Gloucester City Council,23UE,Housing Services,HS001,B&B Payments,1303,07/03/2019,06/03/2019,TRAVELODGE GB0000,THAME,,OX9 3AT,REDACTED,556*********6959,3615,TRAVELODGE,406,Pound Sterling (826),1.000000000,406,Debit,55504439065298182892643,02/04/2019,GLOUCESTER CC
Gloucester City Council,23UE,Housing Services,HS001,B&B Payments,1303,07/03/2019,06/03/2019,TRAVELODGE GB0000,THAME,,OX9 3AT,REDACTED,556*********6959,3615,TRAVELODGE,280,Pound Sterling (826),1.000000000,280,Debit,55504439065298182893815,02/04/2019,GLOUCESTER CC
Gloucester City Council,23UE,Housing Services,HS001,B&B Payments,1303,07/03/2019,06/03/2019,TRAVELODGE GB0000,THAME,,OX9 3AT,REDACTED,556*********6959,3615,TRAVELODGE,209,Pound Sterling (826),1.000000000,209,Debit,55504439065298182894003,02/04/2019,GLOUCESTER CC
Gloucester City Council,23UE,Housing Services,HS001,B&B Payments,1303,07/03/2019,06/03/2019,TRAVELODGE GB0000,THAME,,OX9 3AT,REDACTED,556*********6959,3615,TRAVELODGE,406,Pound Sterling (826),1.000000000,406,Debit,55504439065298182903598,02/04/2019,GLOUCESTER CC
Gloucester City Council,23UE,Housing Services,HS001,B&B Payments,1303,07/03/2019,06/03/2019,TRAVELODGE GB0000,THAME,,OX9 3AT,REDACTED,556*********6959,3615,TRAVELODGE,451,Pound Sterling (826),1.000000000,451,Debit,55504439065298182988243,02/04/2019,GLOUCESTER CC
Gloucester City Council,23UE,Housing Services,HS001,B&B Payments,1303,07/03/2019,06/03/2019,TRAVELODGE GB0000,THAME,,OX9 3AT,REDACTED,556*********6959,3615,TRAVELODGE,-406,Pound Sterling (826),1.000000000,-406,Credit,55504439065298182902947,02/04/2019,GLOUCESTER CC
Gloucester City Council,23UE,Housing Services,HS001,B&B Payments,1303,07/03/2019,06/03/2019,TRAVELODGE GB0000,THAME,,OX9 3AT,REDACTED,556*********6959,3615,TRAVELODGE,-209,Pound Sterling (826),1.000000000,-209,Credit,55504439065298182905080,02/04/2019,GLOUCESTER CC
Gloucester City Council,23UE,Housing Services,HS001,B&B Payments,1303,08/03/2019,07/03/2019,TRAVELODGE GB0000,THAME,,OX9 3AT,REDACTED,556*********6959,3615,TRAVELODGE,205,Pound Sterling (826),1.000000000,205,Debit,55504439066298189379494,02/04/2019,GLOUCESTER CC
Gloucester City Council,23UE,Housing Services,HS001,B&B Payments,1303,08/03/2019,05/03/2019,TRAVELODGE GB0809,GLOUCESTER,,GL1 5SF,REDACTED,556*********6959,3615,TRAVELODGE,10,Pound Sterling (826),1.000000000,10,Debit,55504439066110230209796,02/04/2019,GLOUCESTER CC
Gloucester City Council,23UE,Housing Services,HS001,Public Transport - Staff,2402,12/03/2019,11/03/2019,Trainline,London,GBR,1445,REDACTED,556*********6959,4112,PASSENGER RAILWAYS,179.5,Pound Sterling (826),1.000000000,179.5,Debit,85130089070909248441960,02/04/2019,GLOUCESTER CC
Gloucester City Council,23UE,Housing Services,HS001,Public Transport - Staff,2402,12/03/2019,11/03/2019,Trainline,London,GBR,1445,REDACTED,556*********6959,4112,PASSENGER RAILWAYS,117.1,Pound Sterling (826),1.000000000,117.1,Debit,85130089070909248350815,02/04/2019,GLOUCESTER CC
Gloucester City Council,23UE,Housing Services,HS001,B&B Payments,1303,19/03/2019,18/03/2019,TRAVELODGE GB0000,THAME,,OX9 3AT,REDACTED,556*********6959,3615,TRAVELODGE,401,Pound Sterling (826),1.000000000,401,Debit,55504439077298156767579,02/04/2019,GLOUCESTER CC
Gloucester City Council,23UE,Housing Services,HS001,B&B Payments,1303,20/03/2019,19/03/2019,TRAVELODGE GB0000,THAME,,OX9 3AT,REDACTED,556*********6959,3615,TRAVELODGE,62,Pound Sterling (826),1.000000000,62,Debit,55504439078298163218011,02/04/2019,GLOUCESTER CC
Gloucester City Council,23UE,Housing Services,HS001,B&B Payments,1303,26/03/2019,25/03/2019,TRAVELODGE GB0000,THAME,,OX9 3AT,REDACTED,556*********6959,3615,TRAVELODGE,370,Pound Sterling (826),1.000000000,370,Debit,55504439084298100765175,02/04/2019,GLOUCESTER CC
Gloucester City Council,23UE,Housing Services,HS001,B&B Payments,1303,02/04/2019,01/04/2019,TRAVELODGE GB0000,THAME,,OX9 3AT,REDACTED,556*********6959,3615,TRAVELODGE,576,Pound Sterling (826),1.000000000,576,Debit,55504439091298148508075,02/04/2019,GLOUCESTER CC
Gloucester City Council,23UE,ICT Projects,XCICT,Hardware,9005,05/03/2019,04/03/2019,WWW.CABLEMONKEY.CO.UK,INTERNET,GBR,CM77 7AA,REDACTED,556*********3063,5065,ELECTRICAL PARTS AND EQUIPMENT,547.92,Pound Sterling (826),1.000000000,547.92,Debit,05272479064910066018606,02/04/2019,GLOUCESTER CC
Gloucester City Council,23UE,Financial Services,FS004,Public Transport - Staff,2402,11/03/2019,08/03/2019,Trainline,London,GBR,1445,REDACTED,556*********3063,4112,PASSENGER RAILWAYS,44.8,Pound Sterling (826),1.000000000,44.8,Debit,85130089067909114298564,02/04/2019,GLOUCESTER CC
Gloucester City Council,23UE,Civica Admin Charges,BI002,Professional Advice/Consultants Fees,3952,13/03/2019,12/03/2019,HMCOURTS-SERVICE.G,01452420100,,GL12ZG,REDACTED,556*********3063,9222,FINES,341.5,Pound Sterling (826),1.000000000,341.5,Debit,85481479072123089017717,02/04/2019,GLOUCESTER CC
Gloucester City Council,23UE,Elections,DS004,Professional Advice/Consultants Fees,3952,13/03/2019,12/03/2019,WWW.ICO.GOV.UK,03031231113 W,,SK95AF,REDACTED,556*********3063,9399,GOVERNMENT SERVICES NOT ELSEWHERE CLASSIFIED,40,Pound Sterling (826),1.000000000,40,Debit,85481479072123079510713,02/04/2019,GLOUCESTER CC
Gloucester City Council,23UE,Business Transformation,BI006,General Supplies/Materials,3025,15/03/2019,14/03/2019,AMZN Mktp UK*MW3FW1864,800-279-6620,LUX,L2338,REDACTED,556*********3063,5942,BOOK STORES,64.52,Pound Sterling (826),1.000000000,64.52,Debit,55204729073200912968765,02/04/2019,GLOUCESTER CC
Gloucester City Council,23UE,Civica Admin Charges,BI002,Professional Advice/Consultants Fees,3952,15/03/2019,14/03/2019,AMZN MKTP UK*MW1UH78Q4,AMAZON.CO.UK,LUX,,REDACTED,556*********3063,5942,BOOK STORES,14.79,Pound Sterling (826),1.000000000,14.79,Debit,85389249073910181973907,02/04/2019,GLOUCESTER CC
Gloucester City Council,23UE,Business Transformation,BI006,General Supplies/Materials,3025,21/03/2019,20/03/2019,AMZN Mktp UK*MW69649S4,800-279-6620,LUX,L2338,REDACTED,556*********3063,5942,BOOK STORES,107.08,Pound Sterling (826),1.000000000,107.08,Debit,55204729079200296088127,02/04/2019,GLOUCESTER CC
Gloucester City Council,23UE,Business Transformation,BI006,General Supplies/Materials,3025,21/03/2019,21/03/2019,AMZN Mktp UK*MW12Z69A4,800-279-6620,LUX,L2338,REDACTED,556*********3063,5942,BOOK STORES,10.09,Pound Sterling (826),1.000000000,10.09,Debit,55204729080200422808247,02/04/2019,GLOUCESTER CC
Gloucester City Council,23UE,Business Transformation,BI006,General Supplies/Materials,3025,22/03/2019,21/03/2019,AMZN Mktp UK*MW8LA5UY4,800-279-6620,LUX,L2338,REDACTED,556*********3063,5942,BOOK STORES,8.1,Pound Sterling (826),1.000000000,8.1,Debit,55204729080200485598362,02/04/2019,GLOUCESTER CC
Gloucester City Council,23UE,Business Transformation,BI006,General Supplies/Materials,3025,28/03/2019,27/03/2019,AMZN Mktp UK*MZ5YM84K4,800-279-6620,LUX,L2338,REDACTED,556*********3063,5942,BOOK STORES,39.83,Pound Sterling (826),1.000000000,39.83,Debit,55204729086200899521152,02/04/2019,GLOUCESTER CC
Gloucester City Council,23UE,Business Transformation,BI006,General Supplies/Materials,3025,29/03/2019,28/03/2019,AMZNMktplace,amazon.co.uk,GBR,EC2A 2FA,REDACTED,556*********3063,5999,MISCELLANEOUS AND RETAIL STORES,56.9,Pound Sterling (826),1.000000000,56.9,Debit,55204729087200042281604,02/04/2019,GLOUCESTER CC
